{"text_format":"3","workbook":"xlsx","n_sheets":1,"sheets":["Протокол ШЭ ВОШ по предмету"],"not_rendered":{"external_links":1,"defined_names":1},"read":"whole","date_system":"1900"}

{"sheet":"Протокол ШЭ ВОШ по предмету","index":0,"n_rows":92,"n_cols":15,"rows_kept":92}
["№","Фамилия","Имя","Отчество","Дата рождения","Пол","Участник с ОВЗ (да/нет)","Класс обучения","Класс участия","Балл","Максимальный балл","Статус","Призёр муниципального этапа прошлого года","ФИО учителя","Место работы учителя"]
[1,"Гришин ","Егор","Максимович","2010-04-04","м","нет",6,6,27,50,"Победитель","нет",{"$f":"'[1]Протокол ШЭ ВОШ по предмету'!N52","v":"Голованов Владимир Владимирович"},"Муниципальное бюджетное общеобразовательное учреждение \"Многопрофильный лицей №37\" Нижнекамского муниципального района Республики Татарстан"]
[2,"Шумский ","Добрыня","Тимурович","2010-05-05","м","нет",6,6,20,50,"Участник","нет",{"$f":"'[1]Протокол ШЭ ВОШ по предмету'!N53","v":"Голованов Владимир Владимирович"},"Муниципальное бюджетное общеобразовательное учреждение \"Многопрофильный лицей №37\" Нижнекамского муниципального района Республики Татарстан"]
[3,"Минегулова ","Амалия","Альбертовна","2010-06-30","ж","нет",6,6,10,50,"Участник","нет",{"$f":"'[1]Протокол ШЭ ВОШ по предмету'!N54","v":"Голованов Владимир Владимирович"},"Муниципальное бюджетное общеобразовательное учреждение \"Многопрофильный лицей №37\" Нижнекамского муниципального района Республики Татарстан"]
[4,"Гайфутдинов ","Ислам","Айнурович","2009-11-11","м","нет",6,6,8,50,"Участник","нет",{"$f":"'[1]Протокол ШЭ ВОШ по предмету'!N55","v":"Голованов Владимир Владимирович"},"Муниципальное бюджетное общеобразовательное учреждение \"Многопрофильный лицей №37\" Нижнекамского муниципального района Республики Татарстан"]
[5,"Макаров ","Георгий ","Дмитриевич","2010-04-21","м","нет",6,6,8,50,"Участник","нет",{"$f":"'[1]Протокол ШЭ ВОШ по предмету'!N56","v":"Голованов Владимир Владимирович"},"Муниципальное бюджетное общеобразовательное учреждение \"Многопрофильный лицей №37\" Нижнекамского муниципального района Республики Татарстан"]
[6,"Казаков ","Ярослав","Александрович","2009-09-26","м","нет",6,6,6,50,"Участник","нет",{"$f":"'[1]Протокол ШЭ ВОШ по предмету'!N57","v":"Голованов Владимир Владимирович"},"Муниципальное бюджетное общеобразовательное учреждение \"Многопрофильный лицей №37\" Нижнекамского муниципального района Республики Татарстан"]
[7,"Захаров ","Кирилл","Александрович","2011-07-01","м","нет",6,6,5,50,"Участник","нет",{"$f":"'[1]Протокол ШЭ ВОШ по предмету'!N58","v":"Голованов Владимир Владимирович"},"Муниципальное бюджетное общеобразовательное учреждение \"Многопрофильный лицей №37\" Нижнекамского муниципального района Республики Татарстан"]
[8,"Чутаева ","Розалина ","Руслановна","2010-04-20","ж","нет",6,6,3,50,"Участник","нет",{"$f":"'[1]Протокол ШЭ ВОШ по предмету'!N59","v":"Голованов Владимир Владимирович"},"Муниципальное бюджетное общеобразовательное учреждение \"Многопрофильный лицей №37\" Нижнекамского муниципального района Республики Татарстан"]
[9,"Бадртдинова ","Алина ","Руслановна","2010-05-19","ж","нет",6,6,2,50,"Участник","нет",{"$f":"'[1]Протокол ШЭ ВОШ по предмету'!N60","v":"Голованов Владимир Владимирович"},"Муниципальное бюджетное общеобразовательное учреждение \"Многопрофильный лицей №37\" Нижнекамского муниципального района Республики Татарстан"]
[10,"Шандренкова ","Анастасия","Александровна","2010-07-06","ж","нет",6,6,2,50,"Участник","нет",{"$f":"'[1]Протокол ШЭ ВОШ по предмету'!N61","v":"Голованов Владимир Владимирович"},"Муниципальное бюджетное общеобразовательное учреждение \"Многопрофильный лицей №37\" Нижнекамского муниципального района Республики Татарстан"]
[11,"Салахова ","Сафия","Ильшатовна","2009-10-27","ж","нет",7,{"$f":"H12","v":7},29,50,"Победитель","нет",{"$f":"'[1]Протокол ШЭ ВОШ по предмету'!N62","v":"Голованов Владимир Владимирович"},"Муниципальное бюджетное общеобразовательное учреждение \"Многопрофильный лицей №37\" Нижнекамского муниципального района Республики Татарстан"]
[12,"Гайдуллин","Ярослав","Владимирович","2009-07-24","м","нет",7,7,21,50,"Участник","нет",{"$f":"'[1]Протокол ШЭ ВОШ по предмету'!N63","v":"Голованов Владимир Владимирович"},"Муниципальное бюджетное общеобразовательное учреждение \"Многопрофильный лицей №37\" Нижнекамского муниципального района Республики Татарстан"]
[13,"Галкина","Дарья ","Александровна","2009-10-29","ж","нет",7,7,20,50,"Участник","нет",{"$f":"'[1]Протокол ШЭ ВОШ по предмету'!N64","v":"Голованов Владимир Владимирович"},"Муниципальное бюджетное общеобразовательное учреждение \"Многопрофильный лицей №37\" Нижнекамского муниципального района Республики Татарстан"]
[14,"Абдуллин","Эмир","Эльмарович","2009-01-03","м","нет",7,7,14,50,"Участник","нет",{"$f":"'[1]Протокол ШЭ ВОШ по предмету'!N65","v":"Голованов Владимир Владимирович"},"Муниципальное бюджетное общеобразовательное учреждение \"Многопрофильный лицей №37\" Нижнекамского муниципального района Республики Татарстан"]
[15,"Ибрагимов ","Данис","Азатович","2009-07-22","м","нет",7,7,12,50,"Участник","нет",{"$f":"'[1]Протокол ШЭ ВОШ по предмету'!N66","v":"Голованов Владимир Владимирович"},"Муниципальное бюджетное общеобразовательное учреждение \"Многопрофильный лицей №37\" Нижнекамского муниципального района Республики Татарстан"]
[16,"Ишкальдина ","Камилла","Вячеславовна","2009-07-23","ж","нет",7,7,12,50,"Участник","нет",{"$f":"'[1]Протокол ШЭ ВОШ по предмету'!N67","v":"Голованов Владимир Владимирович"},"Муниципальное бюджетное общеобразовательное учреждение \"Многопрофильный лицей №37\" Нижнекамского муниципального района Республики Татарстан"]
[17,"Мингазова","Рената","Ленаровна","2009-10-26","ж","нет",7,7,10,50,"Участник","нет",{"$f":"'[1]Протокол ШЭ ВОШ по предмету'!N68","v":"Голованов Владимир Владимирович"},"Муниципальное бюджетное общеобразовательное учреждение \"Многопрофильный лицей №37\" Нижнекамского муниципального района Республики Татарстан"]
[18,"Нагорнова ","Виктория","Максимовна","2009-08-28","ж","нет",7,7,9,50,"Участник","нет",{"$f":"'[1]Протокол ШЭ ВОШ по предмету'!N69","v":"Голованов Владимир Владимирович"},"Муниципальное бюджетное общеобразовательное учреждение \"Многопрофильный лицей №37\" Нижнекамского муниципального района Республики Татарстан"]
[19,"Суходоев ","Кирилл","Павлович","2008-12-28","м","нет",7,7,7,50,"Участник","нет",{"$f":"'[1]Протокол ШЭ ВОШ по предмету'!N70","v":"Голованов Владимир Владимирович"},"Муниципальное бюджетное общеобразовательное учреждение \"Многопрофильный лицей №37\" Нижнекамского муниципального района Республики Татарстан"]
[20,"Платонова ","Дарья ","Вячеславовна","2009-05-21","ж","нет",7,7,6,50,"Участник","нет",{"$f":"'[1]Протокол ШЭ ВОШ по предмету'!N71","v":"Голованов Владимир Владимирович"},"Муниципальное бюджетное общеобразовательное учреждение \"Многопрофильный лицей №37\" Нижнекамского муниципального района Республики Татарстан"]
[21,"Никифорова","Ангелина","Артёмовна","2008-01-28","ж","нет",8,{"$f":"H22","v":8},52,79,"Победитель","нет","Савельева Ольга Ивановна","Муниципальное бюджетное общеобразовательное учреждение \"Многопрофильный лицей №37\" Нижнекамского муниципального района Республики Татарстан"]
[22,"Хайдаров","Эмиль","Альфредович","2008-04-22","м","нет",8,8,43,79,"Призер","нет",{"$f":"'[1]Протокол ШЭ ВОШ по предмету'!N73","v":"Голованов Владимир Владимирович"},"Муниципальное бюджетное общеобразовательное учреждение \"Многопрофильный лицей №37\" Нижнекамского муниципального района Республики Татарстан"]
[23,"Кямякова","Камилла","Вагизовна","2008-02-28","ж","нет",8,8,42,79,"Участник","нет","Савельева Ольга Ивановна","Муниципальное бюджетное общеобразовательное учреждение \"Многопрофильный лицей №37\" Нижнекамского муниципального района Республики Татарстан"]
[24,"Яфаров","Данил","Рафисович","2008-03-25","м","нет",8,8,38,79,"Участник","нет","Савельева Ольга Ивановна","Муниципальное бюджетное общеобразовательное учреждение \"Многопрофильный лицей №37\" Нижнекамского муниципального района Республики Татарстан"]
[25,"Савельев","Иван","Игоревич","2008-06-05","м","нет",8,8,37,79,"Участник","нет","Савельева Ольга Ивановна","Муниципальное бюджетное общеобразовательное учреждение \"Многопрофильный лицей №37\" Нижнекамского муниципального района Республики Татарстан"]
[26,"Лаврентьева","Екатерина","Андреевна","2008-02-08","ж","нет",8,8,36,79,"Участник","нет",{"$f":"'[1]Протокол ШЭ ВОШ по предмету'!N77","v":"Голованов Владимир Владимирович"},"Муниципальное бюджетное общеобразовательное учреждение \"Многопрофильный лицей №37\" Нижнекамского муниципального района Республики Татарстан"]
[27,"Раззаренов","Ярослав","Евгеньевич","2008-10-16","м","нет",8,8,35,79,"Участник","нет",{"$f":"'[1]Протокол ШЭ ВОШ по предмету'!N78","v":"Голованов Владимир Владимирович"},"Муниципальное бюджетное общеобразовательное учреждение \"Многопрофильный лицей №37\" Нижнекамского муниципального района Республики Татарстан"]
[28,"Мустафин ","Ильсур","Рустемович","2008-06-08","м","нет",8,8,35,79,"Участник","нет",{"$f":"'[1]Протокол ШЭ ВОШ по предмету'!N79","v":"Голованов Владимир Владимирович"},"Муниципальное бюджетное общеобразовательное учреждение \"Многопрофильный лицей №37\" Нижнекамского муниципального района Республики Татарстан"]
[29,"Максимчик","Диана","Сергеевна","2008-02-28","ж","нет",8,8,32,79,"Участник","нет","Савельева Ольга Ивановна","Муниципальное бюджетное общеобразовательное учреждение \"Многопрофильный лицей №37\" Нижнекамского муниципального района Республики Татарстан"]
[30,"Шихранова","Ульяна","Алексеевна","2008-11-07","ж","нет",8,8,29,79,"Участник","нет","Савельева Ольга Ивановна","Муниципальное бюджетное общеобразовательное учреждение \"Многопрофильный лицей №37\" Нижнекамского муниципального района Республики Татарстан"]
[31,"Темиргазина","Динара","Данилевна","2008-08-10","ж","нет",8,8,26,79,"Участник","нет","Савельева Ольга Ивановна","Муниципальное бюджетное общеобразовательное учреждение \"Многопрофильный лицей №37\" Нижнекамского муниципального района Республики Татарстан"]
[32,"Крутикова","Елизавета","Александровна","2008-03-14","ж","нет",8,8,26,79,"Участник","нет","Савельева Ольга Ивановна","Муниципальное бюджетное общеобразовательное учреждение \"Многопрофильный лицей №37\" Нижнекамского муниципального района Республики Татарстан"]
[33,"Мулюкова","Алия","Алмазовна","2008-09-18","ж","нет",8,8,25,79,"Участник","нет",{"$f":"N27","v":"Голованов Владимир Владимирович"},"Муниципальное бюджетное общеобразовательное учреждение \"Многопрофильный лицей №37\" Нижнекамского муниципального района Республики Татарстан"]
[34,"Виноградова","Анастасия","Сергеевна","2008-05-12","ж","нет",8,8,24,79,"Участник","нет",{"$f":"N28","v":"Голованов Владимир Владимирович"},"Муниципальное бюджетное общеобразовательное учреждение \"Многопрофильный лицей №37\" Нижнекамского муниципального района Республики Татарстан"]
[35,"Гилязетдинов","Данис","Рустамович","2008-09-26","м","нет",8,8,17,79,"Участник","нет","Голованов Владимир Владимирович","Муниципальное бюджетное общеобразовательное учреждение \"Многопрофильный лицей №37\" Нижнекамского муниципального района Республики Татарстан"]
[36,"Сельсков","Илья","Михайлович","2008-01-19","м","нет",8,8,17,79,"Участник","нет","Савельева Ольга Ивановна","Муниципальное бюджетное общеобразовательное учреждение \"Многопрофильный лицей №37\" Нижнекамского муниципального района Республики Татарстан"]
[37,"Зубаиров","Камиль","Ренатович","2008-07-01","м","нет",8,8,15,79,"Участник","нет",{"$f":"N34","v":"Голованов Владимир Владимирович"},"Муниципальное бюджетное общеобразовательное учреждение \"Многопрофильный лицей №37\" Нижнекамского муниципального района Республики Татарстан"]
[38,"Хусаинов","Бахтияр","Рустемович","2008-08-15","м","нет",8,8,15,79,"Участник","нет","Голованов Владимир Владимирович","Муниципальное бюджетное общеобразовательное учреждение \"Многопрофильный лицей №37\" Нижнекамского муниципального района Республики Татарстан"]
[39,"Чесаков","Артур","Альбертович","2008-11-02","м","нет",8,8,15,79,"Участник","нет","Савельева Ольга Ивановна","Муниципальное бюджетное общеобразовательное учреждение \"Многопрофильный лицей №37\" Нижнекамского муниципального района Республики Татарстан"]
[40,"Сабиров","Ильдар","Ильшатович","2008-07-23","м","нет",8,8,13,79,"Участник","нет",{"$f":"N38","v":"Голованов Владимир Владимирович"},"Муниципальное бюджетное общеобразовательное учреждение \"Многопрофильный лицей №37\" Нижнекамского муниципального района Республики Татарстан"]
[41,"Михеичева","Анастасия","Евгеньевна","2008-02-13","ж","нет",8,8,7,79,"Участник","нет","Голованов Владимир Владимирович","Муниципальное бюджетное общеобразовательное учреждение \"Многопрофильный лицей №37\" Нижнекамского муниципального района Республики Татарстан"]
[42,"Горин","Петр","Олегович","2007-07-13","м",{"$f":"G22","v":"нет"},9,9,47,80,"Победитель",{"$f":"M22","v":"нет"},{"$f":"N4","v":"Голованов Владимир Владимирович"},"Муниципальное бюджетное общеобразовательное учреждение \"Многопрофильный лицей №37\" Нижнекамского муниципального района Республики Татарстан"]
[43,"Смирнов","Артем","Сергеевич","2007-07-13",{"$f":"F23","v":"м"},"нет",9,9,38,80,"Участник","нет","Голованов Владимир Владимирович","Муниципальное бюджетное общеобразовательное учреждение \"Многопрофильный лицей №37\" Нижнекамского муниципального района Республики Татарстан"]
[44,"Шагина ","Лилия","Марселевна","2007-08-27",{"$f":"F24","v":"ж"},"нет",9,9,34,80,"Участник","нет","Голованов Владимир Владимирович","Муниципальное бюджетное общеобразовательное учреждение \"Многопрофильный лицей №37\" Нижнекамского муниципального района Республики Татарстан"]
[45,"Васильева","Альяна","Олеговна","2007-11-19","ж",{"$f":"G25","v":"нет"},9,9,30,80,"Участник","нет","Голованов Владимир Владимирович","Муниципальное бюджетное общеобразовательное учреждение \"Многопрофильный лицей №37\" Нижнекамского муниципального района Республики Татарстан"]
[46,"Софронова","Софья","Вячеславовна","2007-05-12","ж",{"$f":"G26","v":"нет"},9,9,28,80,"Участник","нет","Голованов Владимир Владимирович","Муниципальное бюджетное общеобразовательное учреждение \"Многопрофильный лицей №37\" Нижнекамского муниципального района Республики Татарстан"]
[47,"Юзеев","Вячеслав","Владимирович","2007-04-11","м",{"$f":"G27","v":"нет"},9,9,27,80,"Участник","нет","Голованов Владимир Владимирович","Муниципальное бюджетное общеобразовательное учреждение \"Многопрофильный лицей №37\" Нижнекамского муниципального района Республики Татарстан"]
[48,"Волков","Никита","Витальевич","2007-06-15",{"$f":"F28","v":"м"},"нет",9,9,26,80,"Участник","нет","Голованов Владимир Владимирович","Муниципальное бюджетное общеобразовательное учреждение \"Многопрофильный лицей №37\" Нижнекамского муниципального района Республики Татарстан"]
[49,"Бардашов","Матвей","Сергеевич","2007-07-13",{"$f":"F29","v":"м"},"нет",9,9,15,80,"Участник","нет","Голованов Владимир Владимирович","Муниципальное бюджетное общеобразовательное учреждение \"Многопрофильный лицей №37\" Нижнекамского муниципального района Республики Татарстан"]
[50,"Ломов","Кирилл","Евгеньевич","2007-05-17","м",{"$f":"G30","v":"нет"},9,9,14,80,"Участник","нет","Голованов Владимир Владимирович","Муниципальное бюджетное общеобразовательное учреждение \"Многопрофильный лицей №37\" Нижнекамского муниципального района Республики Татарстан"]
[51,"Солодовников","Матвей","Алексеевич","2007-02-16","м",{"$f":"G31","v":"нет"},9,9,13,80,"Участник","нет","Голованов Владимир Владимирович","Муниципальное бюджетное общеобразовательное учреждение \"Многопрофильный лицей №37\" Нижнекамского муниципального района Республики Татарстан"]
[52,"Юртова","Анастасия","Петровна","2006-10-20",{"$f":"F32","v":"ж"},"нет",10,10,54,80,"Победитель","нет","Савельева Ольга Ивановна","Муниципальное бюджетное общеобразовательное учреждение \"Многопрофильный лицей №37\" Нижнекамского муниципального района Республики Татарстан"]
[53,"Лебедева","Вероника","Андреевна","2005-12-05",{"$f":"F33","v":"ж"},"нет",10,10,51,{"$f":"K43","v":80},"Призер","нет","Савельева Ольга Ивановна","Муниципальное бюджетное общеобразовательное учреждение \"Многопрофильный лицей №37\" Нижнекамского муниципального района Республики Татарстан"]
[54,"Исакиева","Миланья","Юрьевна","2006-01-26",{"$f":"F34","v":"ж"},"нет",10,10,49,80,"Участник","нет","Савельева Ольга Ивановна","Муниципальное бюджетное общеобразовательное учреждение \"Многопрофильный лицей №37\" Нижнекамского муниципального района Республики Татарстан"]
[55,"Ашрафзянова","Камилла","Руслановна","2005-12-18",{"$f":"F35","v":"ж"},"нет",10,10,45,80,"Участник","нет","Савельева Ольга Ивановна","Муниципальное бюджетное общеобразовательное учреждение \"Многопрофильный лицей №37\" Нижнекамского муниципального района Республики Татарстан"]
[56,"Николаева","Аида","Михайловна","2006-08-13","ж",{"$f":"G36","v":"нет"},10,10,41,80,"Участник","нет","Савельева Ольга Ивановна","Муниципальное бюджетное общеобразовательное учреждение \"Многопрофильный лицей №37\" Нижнекамского муниципального района Республики Татарстан"]
[57,"Галиуллина","Азалия","Айратовна","2006-05-02","ж",{"$f":"G37","v":"нет"},{"$f":"H53","v":10},10,37,80,"Участник","нет","Савельева Ольга Ивановна","Муниципальное бюджетное общеобразовательное учреждение \"Многопрофильный лицей №37\" Нижнекамского муниципального района Республики Татарстан"]
[58,"Миронова","Дарья ","Александровна","2006-04-19","ж",{"$f":"G38","v":"нет"},10,10,36,80,"Участник",{"$f":"M38","v":"нет"},"Савельева Ольга Ивановна","Муниципальное бюджетное общеобразовательное учреждение \"Многопрофильный лицей №37\" Нижнекамского муниципального района Республики Татарстан"]
[59,"Пархоменко","Яна","Евгеньевна","2006-02-09","ж",{"$f":"G39","v":"нет"},10,10,36,80,"Участник","нет","Савельева Ольга Ивановна","Муниципальное бюджетное общеобразовательное учреждение \"Многопрофильный лицей №37\" Нижнекамского муниципального района Республики Татарстан"]
[60,"Юдина","Анастасия","Михайловна","2006-07-17","ж",{"$f":"G40","v":"нет"},10,10,34,80,"Участник",{"$f":"M40","v":"нет"},"Савельева Ольга Ивановна","Муниципальное бюджетное общеобразовательное учреждение \"Многопрофильный лицей №37\" Нижнекамского муниципального района Республики Татарстан"]
[61,"Сибгатуллин","Марат","Фанилович","2005-10-27",{"$f":"F41","v":"м"},"нет",10,10,31,80,"Участник","нет","Савельева Ольга Ивановна","Муниципальное бюджетное общеобразовательное учреждение \"Многопрофильный лицей №37\" Нижнекамского муниципального района Республики Татарстан"]
[62,"Перцева","Ксения","Александровна","2006-03-30",{"$f":"F42","v":"ж"},"нет",{"$f":"H53","v":10},10,30,80,"Участник","нет","Савельева Ольга Ивановна","Муниципальное бюджетное общеобразовательное учреждение \"Многопрофильный лицей №37\" Нижнекамского муниципального района Республики Татарстан"]
[63,"Плеханов","Олег","Владимирович","2006-05-29","м","нет",10,10,28,{"$f":"K43","v":80},"Участник","нет","Савельева Ольга Ивановна","Муниципальное бюджетное общеобразовательное учреждение \"Многопрофильный лицей №37\" Нижнекамского муниципального района Республики Татарстан"]
[64,"Митрофанова","Дарья ","Сергеевна","2006-12-18","ж","нет",10,10,28,80,"Участник","нет","Савельева Ольга Ивановна","Муниципальное бюджетное общеобразовательное учреждение \"Многопрофильный лицей №37\" Нижнекамского муниципального района Республики Татарстан"]
[65,"Косова","Екатерина","Алексеевна","2005-12-27","ж","нет",10,10,28,80,"Участник","нет","Савельева Ольга Ивановна","Муниципальное бюджетное общеобразовательное учреждение \"Многопрофильный лицей №37\" Нижнекамского муниципального района Республики Татарстан"]
[66,"Садыкова","Самира","Ренатовна","2006-09-22","ж","нет",10,10,23,80,"Участник","нет","Савельева Ольга Ивановна","Муниципальное бюджетное общеобразовательное учреждение \"Многопрофильный лицей №37\" Нижнекамского муниципального района Республики Татарстан"]
[67,"Латыпова","Лия","Марселевна","2006-09-24","ж","нет",{"$f":"H53","v":10},10,22,80,"Участник","нет","Савельева Ольга Ивановна","Муниципальное бюджетное общеобразовательное учреждение \"Многопрофильный лицей №37\" Нижнекамского муниципального района Республики Татарстан"]
[68,"Фофонова","Юлия","Артемовна","2006-07-12","ж","нет",10,10,22,80,"Участник","нет","Савельева Ольга Ивановна","Муниципальное бюджетное общеобразовательное учреждение \"Многопрофильный лицей №37\" Нижнекамского муниципального района Республики Татарстан"]
[69,"Васильева","Дарья ","Викторовна","2006-01-21","ж","нет",10,10,21,80,"Участник","нет","Савельева Ольга Ивановна","Муниципальное бюджетное общеобразовательное учреждение \"Многопрофильный лицей №37\" Нижнекамского муниципального района Республики Татарстан"]
[70,"Мингалимов","Раиль","Рамилевич","2005-11-24","м","нет",10,10,19,80,"Участник","нет","Савельева Ольга Ивановна","Муниципальное бюджетное общеобразовательное учреждение \"Многопрофильный лицей №37\" Нижнекамского муниципального района Республики Татарстан"]
[71,"Исхакова","Ева","Камилевна","2006-04-27","ж","нет",10,10,17,80,"Участник","нет","Савельева Ольга Ивановна","Муниципальное бюджетное общеобразовательное учреждение \"Многопрофильный лицей №37\" Нижнекамского муниципального района Республики Татарстан"]
[72,"Салахова ","Азалия","Ильшатовна","2005-12-07","ж",{"$f":"M53","v":"нет"},11,11,55,{"$f":"K53","v":80},"Победитель",{"$f":"M53","v":"нет"},"Савельева Ольга Ивановна","Муниципальное бюджетное общеобразовательное учреждение \"Многопрофильный лицей №37\" Нижнекамского муниципального района Республики Татарстан"]
[73,"Алексеева","Виктория","Андреевна","2005-06-25","ж","нет",11,11,52,80,"Призер","нет","Савельева Ольга Ивановна","Муниципальное бюджетное общеобразовательное учреждение \"Многопрофильный лицей №37\" Нижнекамского муниципального района Республики Татарстан"]
[74,"Мубаракшин","Данис","Рустемович","2005-02-05","м","нет",11,11,38,80,"Участник","нет","Савельева Ольга Ивановна","Муниципальное бюджетное общеобразовательное учреждение \"Многопрофильный лицей №37\" Нижнекамского муниципального района Республики Татарстан"]
[75,"Нагимова","Алина ","Ринатовна","2005-01-25","ж","нет",11,11,36,80,"Участник","нет","Савельева Ольга Ивановна","Муниципальное бюджетное общеобразовательное учреждение \"Многопрофильный лицей №37\" Нижнекамского муниципального района Республики Татарстан"]
[76,"Ягудина","Нурия","Анасовна","2005-03-25","ж","нет",11,11,35,80,"Участник","нет","Савельева Ольга Ивановна","Муниципальное бюджетное общеобразовательное учреждение \"Многопрофильный лицей №37\" Нижнекамского муниципального района Республики Татарстан"]
[77,"Зарипова","Наргиз","Ильгизовна","2005-10-21","ж","нет",11,11,34,80,"Участник","нет","Савельева Ольга Ивановна","Муниципальное бюджетное общеобразовательное учреждение \"Многопрофильный лицей №37\" Нижнекамского муниципального района Республики Татарстан"]
[78,"Игнашина","Полина","Юрьевна","2005-08-21","ж","нет",{"$f":"H73","v":11},11,34,80,"Участник","нет","Савельева Ольга Ивановна","Муниципальное бюджетное общеобразовательное учреждение \"Многопрофильный лицей №37\" Нижнекамского муниципального района Республики Татарстан"]
[79,"Керимов","Даниил","Русланович","2005-10-17","м","нет",11,11,33,80,"Участник","нет","Савельева Ольга Ивановна","Муниципальное бюджетное общеобразовательное учреждение \"Многопрофильный лицей №37\" Нижнекамского муниципального района Республики Татарстан"]
[80,"Спиридонова","Анастасия","Владиславовна","2005-01-28","ж","нет",11,11,32,80,"Участник","нет","Савельева Ольга Ивановна","Муниципальное бюджетное общеобразовательное учреждение \"Многопрофильный лицей №37\" Нижнекамского муниципального района Республики Татарстан"]
[81,"Шайхутдинова","Диана","Фиргатовна","2005-02-07","ж","нет",11,11,32,80,"Участник","нет","Савельева Ольга Ивановна","Муниципальное бюджетное общеобразовательное учреждение \"Многопрофильный лицей №37\" Нижнекамского муниципального района Республики Татарстан"]
[82,"Гудошников","Никита","Алексеевич","2005-05-04","м","нет",11,11,28,80,"Участник","нет","Савельева Ольга Ивановна","Муниципальное бюджетное общеобразовательное учреждение \"Многопрофильный лицей №37\" Нижнекамского муниципального района Республики Татарстан"]
[83,"Ахметшина","Алина ","Азатовна","2005-02-23","ж","нет",11,11,27,80,"Участник","нет","Савельева Ольга Ивановна","Муниципальное бюджетное общеобразовательное учреждение \"Многопрофильный лицей №37\" Нижнекамского муниципального района Республики Татарстан"]
[84,"Старостина","Полина","Максимовна","2005-04-05","ж","нет",{"$f":"H73","v":11},11,26,80,"Участник","нет","Савельева Ольга Ивановна","Муниципальное бюджетное общеобразовательное учреждение \"Многопрофильный лицей №37\" Нижнекамского муниципального района Республики Татарстан"]
[85,"Старостина","Вероника","Максимовна","2005-04-05","ж","нет",11,11,25,80,"Участник","нет","Савельева Ольга Ивановна","Муниципальное бюджетное общеобразовательное учреждение \"Многопрофильный лицей №37\" Нижнекамского муниципального района Республики Татарстан"]
[86,"Валиева","Эльвира","Айдаровна","2005-10-07","ж","нет",11,11,24,80,"Участник","нет","Савельева Ольга Ивановна","Муниципальное бюджетное общеобразовательное учреждение \"Многопрофильный лицей №37\" Нижнекамского муниципального района Республики Татарстан"]
[87,"Халин","Артур","Александрович","2005-10-21","м","нет",11,11,23,80,"Участник","нет","Савельева Ольга Ивановна","Муниципальное бюджетное общеобразовательное учреждение \"Многопрофильный лицей №37\" Нижнекамского муниципального района Республики Татарстан"]
[88,"Гизатуллина","Ильвина","Марселевна","2005-07-08","ж","нет",11,11,22,80,"Участник","нет","Савельева Ольга Ивановна","Муниципальное бюджетное общеобразовательное учреждение \"Многопрофильный лицей №37\" Нижнекамского муниципального района Республики Татарстан"]
[89,"Шакуров","Булат","Ленарович","2005-05-13","м","нет",11,11,20,80,"Участник","нет","Савельева Ольга Ивановна","Муниципальное бюджетное общеобразовательное учреждение \"Многопрофильный лицей №37\" Нижнекамского муниципального района Республики Татарстан"]
[90,"Хуснутдинова","Камилла","Маратовна","2005-06-11","ж","нет",11,11,18,80,"Участник","нет","Савельева Ольга Ивановна","Муниципальное бюджетное общеобразовательное учреждение \"Многопрофильный лицей №37\" Нижнекамского муниципального района Республики Татарстан"]
[91,"Бахитова","Дарина","Рашидовна","2005-05-12","ж","нет",11,11,11,80,"Участник","нет","Савельева Ольга Ивановна","Муниципальное бюджетное общеобразовательное учреждение \"Многопрофильный лицей №37\" Нижнекамского муниципального района Республики Татарстан"]